Cogmind - Beta 14 @@@ ROGUE MODE // 2025.04.25 @ 13:10:14 Player: McSaucyNugget Result: Destroyed by Y-45 Defender with Beam Rifle Performance ------------- Evolutions (1) 500 Regions Visited (5) 1000 Robots Destroyed (61) 305 Value Destroyed (1858) 1858 Prototype IDs (2) 40 Alien Tech Used (0) 0 Bonus (511) 511 TOTAL SCORE: 4214 Bonus ------- High Alert Combat Kills 30 Follower Combat Kills 317 Entered Garrisons 200 Friendly Fire -36 Cogmind --------- Core Integrity 0/400 Matter 260/300 Energy 100/100 System Corruption 0% Temperature Cool (9) Movement Rolling (230) Ox10 Location -9/Garrison Parts ------- > --- POWER (1) -------- (None) > --- PROPULSION (2) --- Wheel > --- UTILITY (4) ------ Huge Storage Unit Hardened Light Armor Plating Sensor Drone Bay (17/20) > --- WEAPON (2) ------- Heavy Assault Rifle Mini Grenade Launcher > --- INVENTORY (25) --- Cooled Ion Engine Improved Treads Cooling System High-capacity Matter Pod (200) Improved Terrain Scanner Hardened Light Armor Plating Hardened Light Armor Plating Relay Coupler [Swarmer] (35) Relay Coupler [Grunt] (31) Relay Coupler [Grunt] (31) Relay Coupler [Duelist] (23) Relay Coupler [Sentry] (17) Relay Coupler [Demolisher] (20) Relay Coupler [Heavy] (16) Heavy Assault Rifle Heavy Assault Rifle Heavy Assault Rifle Autogun Mini Grenade Launcher Mini Grenade Launcher Plasma Cutter Katana Peak State ------------ > --- POWER ------------ Light Nuclear Core > --- PROPULSION ------- Wheel Compact Wheel > --- UTILITY ---------- Huge Storage Unit Hardened Light Armor Plating Hardened Light Armor Plating Sensor Drone Bay > --- WEAPON ----------- Heavy Assault Rifle Katana > --- INVENTORY -------- Ion Engine Cooled Ion Engine Improved Treads Wheel Cooling System High-capacity Matter Pod Improved Terrain Scanner Hardened Light Armor Plating Hardened Light Armor Plating Relay Coupler [Swarmer] Relay Coupler [Grunt] Relay Coupler [Grunt] Relay Coupler [Duelist] Relay Coupler [Sentry] Relay Coupler [Demolisher] Relay Coupler [Heavy] Heavy Assault Rifle Heavy Assault Rifle Heavy Assault Rifle Autogun Mini Grenade Launcher Mini Grenade Launcher Mini Grenade Launcher Plasma Cutter [Rating: 29] Favorites ----------- Power Ion Engine Engine Ion Engine Power Core Light Nuclear Core Propulsion Wheel Treads Light Treads Wheel Wheel Utility Huge Storage Unit Device Sensor Drone Bay Storage Huge Storage Unit Protection Hardened Light Armor Plating Weapon Light Assault Rifle Energy Gun Particle Gun Ballistic Gun Light Assault Rifle Ballistic Cannon Improved Light Cannon Launcher Grenade Launcher Special Weapon Plasma Cutter Impact Weapon Heavy Hammer Slashing Weapon Katana Build | -11 -10 -10 -9 -9 -9 ------- Run | Yrd Mat Min Mat Sto Gar Slots Evolved 2 | . . . 2 . . Power . | . . . . . . Propulsion . | . . . . . . Utility 2 | . . . 2 . . Weapon . | . . . . . . Parts Attached 83 | 7 16 9 19 12 20 Power 7 | 1 1 1 2 . 2 Engine 6 | 1 1 1 2 . 1 Core 1 | . . . . . 1 Reactor . | . . . . . . Propulsion 19 | 2 7 1 2 4 3 Treads 4 | 2 1 . . 1 . Leg . | . . . . . . Wheel 15 | . 6 1 2 3 3 Hover . | . . . . . . Flight . | . . . . . . Utility 12 | 2 1 . 3 1 5 Device 6 | 1 . . 3 . 2 Storage 2 | 1 1 . . . . Processor . | . . . . . . Hackware . | . . . . . . Protection 4 | . . . . 1 3 Artifact . | . . . . . . Weapon 45 | 2 7 7 12 7 10 Energy Gun 11 | 1 2 . 6 2 . Energy Cannon . | . . . . . . Ballistic Gun 13 | 1 2 4 1 3 2 Ballistic Cannon 1 | . . . . . 1 Launcher 11 | . 2 2 4 1 2 Special Weapon 7 | . 1 1 1 1 3 Impact Weapon 1 | . . . . . 1 Slashing Weapon 1 | . . . . . 1 Piercing Weapon . | . . . . . . Special Melee Weapon . | . . . . . . Unidentified Prototypes 2 | . . . 2 . . Parts Lost 13 | . 1 . 2 5 5 Power 3 | . . . 1 . 2 Propulsion 6 | . 1 . . 3 2 Utility 2 | . . . . 1 1 Weapon 2 | . . . 1 1 . Highest Loss Streak 5 | . 1 . 2 2 5 To Critical Strikes . | . . . . . . Average Slot Usage (%) 95 | . 99 100 93 92 92 Engine 11 | . 13 14 10 11 5 Wheel 22 | . 24 28 22 17 21 Device 19 | . 14 14 28 23 15 Storage 12 | . 14 14 11 11 11 Protection 3 | . . . . 7 15 Energy Gun 6 | . 13 . 13 6 . Ballistic Gun 15 | . 13 26 7 14 13 Peak Build Rating 29 | 9 10 11 24 25 29 Average Rating 16 | 6 9 10 19 23 25 On Entrance 13 | . 9 10 11 24 25 Naked Turns . | . . . . . . Heaviest Build 115 | 14 91 89 110 114 115 Greatest Support 40 | 40 40 20 22 28 26 Greatest Overweight (x) 11 | 1 8 4 5 11 10 Average Overweight (x) 4 | . 4 4 4 5 4 Largest Inventory Capacity 25 | 8 25 25 25 25 25 Average Capacity 24 | 7 24 25 25 25 25 Most Carried 25 | 3 13 20 25 25 25 Average Carried 18 | 2 8 16 21 22 24 Final Capacity 25 | 8 25 25 25 25 25 Final Carried 25 | 3 13 20 24 25 22 Class Distribution -------------------- 50% | Scavenger-Mutant 34% | Mutant 14% | Commander-Mutant Dominant Class ---------------- Mutant | -10/Materials Scavenger-Mutant | -10/Mines Scavenger-Mutant | -9/Materials Mutant | -9/Storage Commander-Mutant | -9/Garrison Resources | -11 -10 -10 -9 -9 -9 ----------- Run | Yrd Mat Min Mat Sto Gar Matter Collected 1889 | 135 248 634 312 297 263 Remotely . | . . . . . . Salvage Created 1818 | 65 281 39 737 490 206 Parts 105 | 3 18 . 47 25 12 Haulers Intercepted 2 | . 1 . 1 . . Recyclers Shooed 3 | . . . 3 . . Parts Field Recycled . | . . . . . . Retrieved Matter . | . . . . . . Parts Self-Destructed . | . . . . . . Prevented . | . . . . . . Kills | -11 -10 -10 -9 -9 -9 ------- Run | Yrd Mat Min Mat Sto Gar Combat Hostiles Destroyed 49 | . 8 5 18 10 8 Melee 2 | . . . . . 2 Guns 22 | . 3 3 7 7 2 Cannons 1 | . 1 . . . . AOE 24 | . 4 2 11 3 4 Classes Destroyed 13 | 1 5 1 3 2 1 Worker 4 | . 3 . 1 . . Builder 1 | . . . 1 . . Tunneler 3 | 3 . . . . . Hauler 2 | . 1 . 1 . . Recycler 4 | . 1 . 2 1 . Operator 2 | . . . . 2 . Watcher 1 | . . . . 1 . Swarmer 15 | . 6 . 3 3 3 Saboteur 1 | . . . . . 1 Grunt 17 | . 2 . 9 3 3 Duelist 1 | . . . 1 . . Sentry 10 | . . . 5 4 1 Assembled 5 | . . 5 . . . Best Kill Streak 11 | 2 3 2 11 4 3 Combat Bots Only 9 | . 3 2 9 3 3 Max Kills in Single Turn 4 | 1 3 1 4 2 2 Gunslinging . | . . . . . . Exploded 2 | . 2 1 2 2 2 Melee 1 | . . . . . 1 Uniques/NPCs Destroyed . | . . . . . . Combat | -11 -10 -10 -9 -9 -9 -------- Run | Yrd Mat Min Mat Sto Gar Hostile Shots Fired 238 | . 40 13 60 55 70 Missed 70 | . 11 7 20 10 22 Damage Taken 2131 | . 246 124 519 647 595 Core 465 | . 27 25 108 146 159 Absorbed by Shields . | . . . . . . Core Remaining (%) 89 | 100 . 79 . . . Volleys Fired 215 | 10 54 42 49 46 14 Largest 2 | 2 2 2 2 2 2 Hottest 130 | 70 100 100 130 130 62 Shots Fired 383 | 20 100 64 88 88 23 Gun 331 | 20 92 44 78 84 13 Cannon 4 | . . . . . 4 Launcher 38 | . 4 17 9 4 4 Special 10 | . 4 3 1 . 2 Kinetic 211 | 10 46 44 34 60 17 Thermal 134 | 10 50 3 45 24 2 Explosive 38 | . 4 17 9 4 4 Electromagnetic . | . . . . . . Robot Hit Streak 19 | 4 9 8 19 18 6 Robot Miss Streak 8 | 1 8 5 3 3 5 Penetration Max . | . . . . . . Secondary Targets 2 | . 1 1 . . . Max Gunslinging Chain 1 | . 1 1 . . . Shots Hit Robots 217 | 13 46 25 61 60 12 Core Hits 121 | 3 26 14 41 26 11 Critical Kills 2 | . 1 . . 1 . Critical Parts Destroyed 1 | . . . . 1 . Critical Strikes 7 | . 1 . 4 2 . Burn 4 | . . . 4 . . Destroy 3 | . 1 . . 2 . Melee Attacks 4 | . . . . . 4 Impact 1 | . . . . . 1 Slashing 3 | . . . . . 3 Piercing . | . . . . . . Sneak Attacks . | . . . . . . Combat Hostiles . | . . . . . . Follow-up Attacks . | . . . . . . Damage Inflicted 4913 | 136 789 353 1813 1211 611 Guns 2482 | 136 461 197 691 896 101 Cannons 84 | . . . . . 84 Explosions 2248 | . 256 156 1122 315 399 Melee 27 | . . . . . 27 Ramming . | . . . . . . Kinetic 1395 | 48 173 197 167 625 185 Thermal 1243 | 88 360 . 524 271 . Explosive 2248 | . 256 156 1122 315 399 Electromagnetic . | . . . . . . Impact . | . . . . . . Slashing 27 | . . . . . 27 Piercing . | . . . . . . Highest Corruption . | . . . . . . Average Corruption . | . . . . . . Corruption Purged . | . . . . . . Corruption Blocked . | . . . . . . Overload Shots . | . . . . . . Overflow Damage 150 | . 4 6 92 . 48 Projectiles 4 | . 4 . . . . Explosions 146 | . . 6 92 . 48 Melee . | . . . . . . Knockbacks 1 | . . . . . 1 Impact . | . . . . . . Kinetic 1 | . . . . . 1 Secondary . | . . . . . . Self-Inflicted Damage 57 | . 6 36 . 15 . Shots 5 | . 1 3 . 1 . Rammed . | . . . . . . Targets Rammed . | . . . . . . Kicked . | . . . . . . Crushed . | . . . . . . Highest Temperature 297 | 110 104 40 102 297 16 Average Temperature 42 | 51 34 22 35 78 6 Received Heat Transfer 734 | . 24 20 198 255 237 Siege Activations . | . . . . . . Robots Corrupted . | . . . . . . Combat Hostiles . | . . . . . . Parts Fried . | . . . . . . Impact Corruptions . | . . . . . . Robots Melted . | . . . . . . Combat Hostiles . | . . . . . . Parts Melted 9 | 2 2 . 1 3 1 Heat Transferred 3517 | 259 1001 . 1591 666 . Parts Sabotaged 10 | . . . . . 10 Parts Stolen . | . . . . . . Parts Stripped . | . . . . . . Power Chain Reactions . | . . . . . . Alert | -11 -10 -10 -9 -9 -9 ------- Run | Yrd Mat Min Mat Sto Gar Peak Influence 620 | 15 386 106 376 246 620 Initial 158 | . 9 93 4 158 120 Average 129 | 5 177 39 117 87 362 Maximum Alert Level 2 | . 1 . 1 1 2 Low Security (%) 78 | 100 46 100 81 92 42 Level 1 16 | . 53 . 18 7 10 Level 2 5 | . . . . . 46 Level 3 . | . . . . . . Level 4 . | . . . . . . Level 5 . | . . . . . . High Security . | . . . . . . Max Security . | . . . . . . Squads Dispatched 5 | . . . 2 3 . Investigation 2 | . . . . 2 . Extermination . | . . . . . . Reinforcement 3 | . . . 2 1 . Assault . | . . . . . . Garrison . | . . . . . . Intercept . | . . . . . . Searches Triggered . | . . . . . . Construction Impeded 2 | . . . 1 1 . Haulers Reinforced . | . . . . . . Active Scanning Responses . | . . . . . . Cargo Convoy Interrupts . | . . . . . . Stealth | -11 -10 -10 -9 -9 -9 --------- Run | Yrd Mat Min Mat Sto Gar Distress Signals 6 | . 1 . 3 2 . Communications Jammed . | . . . . . . Distress Signals . | . . . . . . Times Spotted 89 | . 15 5 27 19 23 Peak Tracking Total 10 | . 4 2 7 4 10 Tactical Retreats 7 | . 2 . 1 1 3 Traps | -11 -10 -10 -9 -9 -9 ------- Run | Yrd Mat Min Mat Sto Gar Traps Triggered 5 | . 1 . . 2 2 Indirectly . | . . . . . . Trap Hack Attempts . | . . . . . . Triggered . | . . . . . . Disarmed . | . . . . . . Reprogrammed . | . . . . . . Reused . | . . . . . . Traps Extracted . | . . . . . . Installed . | . . . . . . Triggered 1 | . . 1 . . . Machines | -11 -10 -10 -9 -9 -9 ---------- Run | Yrd Mat Min Mat Sto Gar Machines Disabled 8 | . . . 5 1 2 Max in Single Turn 4 | . . . 4 1 1 Garrison Relay 2 | . . . . . 2 Machines Repaired . | . . . . . . Machines Dismantled 3 | . . . 1 1 1 Machines Sabotaged . | . . . . . . Overloaded Fab Kills . | . . . . . . Hacking | -11 -10 -10 -9 -9 -9 --------- Run | Yrd Mat Min Mat Sto Gar Machines Accessed 16 | . 3 1 5 6 1 Terminals 14 | . 3 . 5 5 1 Fabricators . | . . . . . . Repair Stations . | . . . . . . Recycling Units . | . . . . . . Scanalyzers . | . . . . . . Garrison Access 1 | . . . . 1 . Total Hacks 30 | . 6 1 8 14 1 Successful 17 | . 2 1 5 9 . Failed 13 | . 4 . 3 5 1 Catastrophic 2 | . . . 2 . . Database Lockouts . | . . . . . . Manual 2 | . . . 2 . . Terminals 26 | . 6 . 8 11 1 Fabricators . | . . . . . . Repair Stations . | . . . . . . Recycling Units . | . . . . . . Scanalyzers . | . . . . . . Garrison Access 3 | . . . . 3 . Terminal Hacks 16 | . 2 1 5 8 . Record 3 | . 1 . 2 . . Open Door 2 | . . 1 . 1 . Branch Access Points 1 | . . . . 1 . Emergency Access Points 1 | . 1 . . . . Alert Level 2 | . . . 1 1 . Unreport Threat 2 | . . . . 2 . Locate Traps 3 | . . . 2 1 . Zone Layout 2 | . . . . 2 . Fabricator Hacks . | . . . . . . Repair Station Hacks . | . . . . . . Recycling Unit Hacks . | . . . . . . Scanalyzer . | . . . . . . Garrison Access Hacks 1 | . . . . 1 . Unlock Access 1 | . . . . 1 . Unauthorized Hacks . | . . . . . . Terminals . | . . . . . . Fabricators . | . . . . . . Repair Stations . | . . . . . . Recycling Units . | . . . . . . Scanalyzers . | . . . . . . Garrison Access . | . . . . . . Data Cores Recovered 1 | . . . . 1 . Used . | . . . . . . Hacking Detections 9 | . 1 . 2 5 1 Full Trace Events 1 | . . . . 1 . Feedback Events . | . . . . . . Feedback Blocked . | . . . . . . Robot Schematics Acquired . | . . . . . . Robots Built . | . . . . . . Authchips . | . . . . . . Time . | . . . . . . Total Robot Build Rating . | . . . . . . Part Schematics Acquired . | . . . . . . Parts Built . | . . . . . . Authchips . | . . . . . . Time . | . . . . . . Total Part Build Rating . | . . . . . . Parts Repaired . | . . . . . . Time . | . . . . . . Parts Recycled . | . . . . . . Recycled Matter . | . . . . . . Retrieved Matter . | . . . . . . Retrieved Components . | . . . . . . Parts Scanalyzed . | . . . . . . Part Schematics Acquired . | . . . . . . Parts Damaged . | . . . . . . Bothacking | -11 -10 -10 -9 -9 -9 ------------ Run | Yrd Mat Min Mat Sto Gar Used RIF Installer . | . . . . . . Robots Hacked . | . . . . . . Non-combat . | . . . . . . Combat . | . . . . . . Robot Hacks Applied . | . . . . . . Relay Couplers Released 8 | . . . . . 8 Machine Destruction 8 | . . . . . 8 Fabnet Peak Effective % . | . . . . . . Robots Rewired . | . . . . . . Allies Hacked . | . . . . . . Hacks Repelled . | . . . . . . Allies | -11 -10 -10 -9 -9 -9 -------- Run | Yrd Mat Min Mat Sto Gar Total Allies 10 | . . . . 10 . Largest Group 10 | . . . . 10 8 Highest-Rated Group 88 | . . . . 88 72 Highest-Rated Ally 16 | . . . . 16 16 Total Orders 4 | . . . 1 1 2 EXPLORE 2 | . . . . 1 1 RETURN 2 | . . . 1 . 1 Ally Attacks 105 | . . . . 41 64 Total Damage 1072 | . . . . 467 605 Kills 16 | . . . . 5 11 Allies Corrupted . | . . . . . . Allies Melted . | . . . . . . Intel | -11 -10 -10 -9 -9 -9 ------- Run | Yrd Mat Min Mat Sto Gar Robot Analysis Total . | . . . . . . Derelict Logs Recovered 1 | . . 1 . . . Drone Launches 11 | . . . 2 7 2 Drone Recoveries 8 | . . . 2 5 1 Exploration | -11 -10 -10 -9 -9 -9 ------------- Run | Yrd Mat Min Mat Sto Gar Turns Passed 4729 | 143 778 1169 1114 930 595 Spaces Moved 2479 | 67 395 731 621 399 266 Core 7 | 7 . . . . . Treads 81 | 60 21 . . . . Legs . | . . . . . . Wheels 2391 | . 374 731 621 399 266 Hover . | . . . . . . Flight . | . . . . . . Fastest Speed 50 | 50 140 140 140 145 135 Average Speed 149 | 152 147 140 144 174 151 Slowest Speed 245 | 160 200 140 155 245 230 Overloaded Moves . | . . . . . . Propulsion Burnouts . | . . . . . . Robots Hopped . | . . . . . . Cave-ins Triggered . | . . . . . . Exploration Rate (%) 57 | 4 69 99 59 80 35 Regions Visited 5 Branch Regions 2 Pre-discovered Areas 2 | . . 1 . 1 . Known Exits Taken 1 | . . . . 1 . Unknown Exits Taken 4 | 1 1 1 1 . . Scrap Searched 2 | . . 2 . . . Spaces Dug 19 | . . 19 . . . Terrain Destroyed 215 | . 26 90 48 32 19 Melee . | . . . . . . Projectile 3 | . . 3 . . . AOE 212 | . 26 87 48 32 19 Terrain Rammed . | . . . . . . Walls Destroyed . | . . . . . . Machines Disabled . | . . . . . . Actions | -11 -10 -10 -9 -9 -9 --------- Run | Yrd Mat Min Mat Sto Gar Total 3087 | 87 485 811 749 537 418 Wait 198 | . 11 24 25 49 89 Move 2474 | 66 394 730 620 398 266 Hop . | . . . . . . Pick Up 61 | 4 9 6 19 11 12 Fast Attach 16 | 6 2 . . 1 7 Attach 19 | 1 3 . 5 5 5 Detach 2 | . 1 . . 1 . Swap 48 | . 11 9 14 6 8 Drop 31 | . . . 14 7 10 Fire 215 | 10 54 42 49 46 14 Melee 4 | . . . . . 4 Ram . | . . . . . . Kick . | . . . . . . Crush . | . . . . . . Escape Stasis 8 | . . . . 8 . Rewire 1 | . . . . 1 . Trap . | . . . . . . Miscellaneous 10 | . . . 3 4 3 Route ------- -11/Scrapyard -10/Materials (discovered 3 exits: *Mat x2 / *Min) -10/Mines (discovered 2 exits: *Mat x2) -9/Materials (discovered 4 exits: [*Mat x3] / *Sto) -9/Storage (discovered 3 exits: [*Mat] / Rec / Gar) -9/Garrison History --------- Turn | Location | Event 6 | -11/Scrapyard | Discovered new exit (range 16) 144 | -11/Scrapyard | Entered Materials 318 | -10/Materials | Build established: Mutant 370 | -10/Materials | Discovered new exit (range 14) 559 | -10/Materials | Discovered new exit (range 15) 900 | -10/Materials | Discovered new exit (range 10) 922 | -10/Materials | Entered Mines 923 | -10/Mines | Learned location of Storage (-9) 923 | -10/Mines | Assembled infested the area 928 | -10/Mines | Assisted by a Guerilla fighting off Assembled 963 | -10/Mines | Met a Derelict bent on vengeance 1033 | -10/Mines | Learned Materials stockpile data 1176 | -10/Mines | Discovered new exit (range 8) 1278 | -10/Mines | Build established: Scavenger-Mutant 1395 | -10/Mines | Discovered new exit (range 6) 1483 | -10/Mines | Found the Drone Emporium 1493 | -10/Mines | Found Prototype Device 2091 | -10/Mines | Entered Materials 2091 | -9/Materials | Evolved 2 slots: Utility x2 2265 | -9/Materials | Identified Sensor Drone Bay 2307 | -9/Materials | Discovered new exit (range 4) 2822 | -9/Materials | Discovered new exit (range 7) 3032 | -9/Materials | Discovered new exit (range 8) 3039 | -9/Materials | Destroyed 9 combat bots 3165 | -9/Materials | Discovered new exit (range 12) 3205 | -9/Materials | Entered Storage 3417 | -9/Storage | Learned location of Armory (-4) 3527 | -9/Storage | Core integrity fell below 50% 3576 | -9/Storage | Build established: Mutant 3642 | -9/Storage | Discovered new exit (range 48) 3745 | -9/Storage | Assisted by bots powering up and referring to "LRC-V3" 4046 | -9/Storage | Identified exit to Recycling 4056 | -9/Storage | Build established: Commander-Mutant 4132 | -9/Storage | Identified exit to Garrison 4135 | -9/Storage | Entered Garrison 4135 | -9/Garrison | Accompanied by 8 allies 4355 | -9/Garrison | Triggered checkpoint 4389 | -9/Garrison | Garrison Relay disabled 4483 | -9/Garrison | Lost 3 allies 4609 | -9/Garrison | Triggered checkpoint 4647 | -9/Garrison | Triggered checkpoint 4664 | -9/Garrison | Spotted B-75 Beast 4722 | -9/Garrison | Core integrity fell below 20% 4730 | -9/Garrison | Destroyed by Y-45 Defender with Beam Rifle Last Messages --------------- 04556_ Dropped Imp. Light Cannon. 04556_ Acquired Wheel. 04569_ Acquired 29 matter. 04572_ Acquired 22 matter. 04615_ G-34 Mercenary destroyed. 04617_ Mercenary 2d destroyed. 04619_ Mercenary 2h destroyed. 04620_ Aluminum Leg melted. 04620_ G-34 Mercenary destroyed. 04623_ Acquired 26 matter. 04664_ Triggered Alarm Trap. 04664_ An alarm sounds. 04672_ Mercenary 2b destroyed. 04696_ Lgt. Nuclear Core destroyed. 04698_ Wheel destroyed. 04704_ Hrd. Light Armor Plating destroyed. 04719_ Com. Wheel destroyed. 04725_ Destroyed Heat Sink. 04728_ Ion Engine destroyed. 04728_ Critical hit (Blast). Map ----- +----------------------------------------------------+ | ?????????????????????????????????????????????????? | | ?????????????????????????????????????????????????? | | ?????????????????????????????????????????????????? | | ?????????????????????????????????????????????????? | | ?????????????????????????????????????????????????? | | ?????????????????????????????????????????????????? | | ?????????????????????????????????????????????????? | | ?????????????????????????????????????????????????? | | ?????????????????????????????????????????????????? | | ?????????????????????????????????????????????????? | | ?????????????????????????????????????????????????? | | ?????????????????????????????????????????????????? | | ?????????????????????????????????????????????????? | | ?????????????????????????????????????????????????? | | ?????????????????????????????????????????????????? | | ?????????????????????????????????????????????????? | | ?????????????????????????????????????????????????? | | ?????????????????????????????????????????????????? | | ????????????????????????????????????????????????? | | ???????????????????????????????????????????????? | | ??????????????????????????????????############# | | ??????????????????????????????????# | | ????????????????????########??????# =% | | ????????????????????? #??????# ######### ### | | ??????????????????????? % #??????# #???????????? | | ????????????????????????#@ #??????# #???????????? | | ????????????????????????# #??????# #???????????? | | ????????????????????????# #??????# #???????????? | | ????????????????????????# #??????# #???????????? | | ????????????????????????# ????## #???????????? | | ???????????????????????? ####+## #???????????? | | ???????????????????????? # ## #???????????? | | ???????????????????????# gY # ## ##??????????? | | ??????????????????######g BB #??????????? | | ??????????????# % BB #??????????? | | ??????????????# = #??????????? | | ??????????????########## ## ## #??????????? | | ???????????????????????# ## ## ###????????? | | ???????????????????????" #????????? | | ???????????????????????" = #????????? | | ???????????????????????" ^ *%! #????????? | | ???????????????????????" ^ ! #????????? | | ???????????????????????# ## ## *%###????????? | | ???????????????????????# ## ##=%=############ | | ?????????????????????? [*= # | | ?????????????????????? =%* # | | ?????????????????????? # | | ??????????????????????#######""""############# ^^# | | ??????????????????????????????????# #???????# ^^# | | ??????????????????????????????????# #???????# % # | +----------------------------------------------------+ Best States ------------- Heat Dissipation 38 Energy Generation 14 Energy Capacity 280 Matter Stores 300 Matter Capacity 300 Sight Range 16 Terrain Scan Range 16 Terrain Scan Density 10 Armor Coverage 300 Evasion (%) 40 Recoil Reduction 2 Item Schematics ----------------- None Robot Schematics ------------------ None Fabricated ------------ Nothing Alien Tech Used ----------------- None Achievements -------------- None Challenges ------------ None Game ------ Seed AntigravSapperStorage Manual? 0 Play Time 00:37:57 Cumulative 17.1 hours Start 2025.04.25 @ 12:34:57 End 2025.04.25 @ 13:10:14 Sessions 1 Manual Loads 0 Difficulty Rogue Special Mode None Game No. 21 Rogue 21 Adventurer 0 Explorer 0 Win Type - Total 1 Types 1/0/0/0/0/0/0/0/0 Lore% 21 Gallery% 23 Achievement% 25 Wizard Run 0 Options --------- Layout 0 ASCII 0 Keyboard 1 Movement Vi Keybinds 0 Fullscreen 2 Font 18/SmallcapsGlow Map View 76x50 Zoom Use 0% Tactical HUD 1 Map Filters NONE Filters NONE Steam 1 RUN: 3e931ce8-851f-4f68-84f5-c59c6d292b4e